[Event "Titled Tuesday Blitz January 03 Late 2023"]
[White "Poliakova, Varvara"]
[Black "Corredor Castellanos, Camilo"]
[WhiteFideId "13518313"]
[BlackFideId "4425871"]
[WhiteElo "2010"]
[BlackElo "1957"]
[Result "1/2-1/2"]
[Round "01"]
[TimeControl "180+2"]
[Date "2023.01.03"]
[WhiteClock "0:00:20"]
[BlackClock "0:00:28"]

1. e4 {[%clk 0:02:59]}  c5 {[%clk 0:02:59]} 2. Nc3 {[%clk 0:02:59]}  a6 {[%clk 0:02:59]} 3. d3 {[%clk 0:02:59]}  b5 {[%clk 0:02:58]} 4. g3 {[%clk 0:02:59]}  Bb7 {[%clk 0:02:58]} 5. f4 {[%clk 0:03:00]}  e6 {[%clk 0:02:58]} 6. Bg2 {[%clk 0:03:00]}  b4 {[%clk 0:02:57]} 7. Nce2 {[%clk 0:02:59]}  d5 {[%clk 0:02:58]} 8. e5 {[%clk 0:02:54]}  Ne7 {[%clk 0:02:52]} 9. Nf3 {[%clk 0:02:54]}  Nf5 {[%clk 0:02:50]} 10. O-O {[%clk 0:02:53]}  h5 {[%clk 0:02:50]} 11. Ng5 {[%clk 0:02:47]}  Be7 {[%clk 0:02:25]} 12. Bf3 {[%clk 0:02:34]}  Nc6 {[%clk 0:02:15]} 13. h4 {[%clk 0:02:30]}  Ncd4 {[%clk 0:02:01]} 14. Nxd4 {[%clk 0:02:18]}  cxd4 {[%clk 0:02:00]} 15. Kg2 {[%clk 0:02:07]}  Rc8 {[%clk 0:02:00]} 16. Bd2 {[%clk 0:02:05]}  Qc7 {[%clk 0:01:44]} 17. Rc1 {[%clk 0:02:04]}  Bxg5 {[%clk 0:01:39]} 18. hxg5 {[%clk 0:02:04]}  Ke7 {[%clk 0:01:35]} 19. Bxh5 {[%clk 0:02:01]}  a5 {[%clk 0:01:33]} 20. Bg4 {[%clk 0:02:00]}  Ne3+ {[%clk 0:01:27]} 21. Bxe3 {[%clk 0:02:00]}  dxe3 {[%clk 0:01:28]} 22. d4 {[%clk 0:02:01]}  Ba6 {[%clk 0:01:25]} 23. Be2 {[%clk 0:02:00]}  Qa7 {[%clk 0:01:24]} 24. Bxa6 {[%clk 0:01:59]}  Qxa6 {[%clk 0:01:25]} 25. Qd3 {[%clk 0:01:56]}  Qb6 {[%clk 0:01:13]} 26. Qxe3 {[%clk 0:01:55]}  Rc4 {[%clk 0:01:13]} 27. c3 {[%clk 0:01:55]}  bxc3 {[%clk 0:01:12]} 28. bxc3 {[%clk 0:01:56]}  g6 {[%clk 0:01:04]} 29. Rb1 {[%clk 0:01:52]}  Qc6 {[%clk 0:01:03]} 30. Rfc1 {[%clk 0:01:43]}  Rc8 {[%clk 0:01:04]} 31. Rb3 {[%clk 0:01:42]}  a4 {[%clk 0:01:04]} 32. Ra3 {[%clk 0:01:37]}  Rb8 {[%clk 0:01:04]} 33. Rc2 {[%clk 0:01:29]}  Rb1 {[%clk 0:01:03]} 34. g4 {[%clk 0:01:28]}  Qc8 {[%clk 0:00:53]} 35. Qd2 {[%clk 0:01:25]}  Qh8 {[%clk 0:00:52]} 36. Rc1 {[%clk 0:01:24]}  Rb5 {[%clk 0:00:45]} 37. Rh1 {[%clk 0:01:18]}  Qb8 {[%clk 0:00:45]} 38. Rc1 {[%clk 0:01:16]}  Qc7 {[%clk 0:00:44]} 39. Qd1 {[%clk 0:01:11]}  Rb2+ {[%clk 0:00:39]} 40. Rc2 {[%clk 0:01:12]}  Rb8 {[%clk 0:00:40]} 41. f5 {[%clk 0:01:09]}  gxf5 {[%clk 0:00:39]} 42. gxf5 {[%clk 0:01:10]}  Rg8 {[%clk 0:00:40]} 43. g6 {[%clk 0:01:08]}  fxg6 {[%clk 0:00:39]} 44. f6+ {[%clk 0:01:09]}  Kf7 {[%clk 0:00:40]} 45. Rc1 {[%clk 0:01:06]}  Rh8 {[%clk 0:00:40]} 46. Rxa4 {[%clk 0:01:05]}  Rh5 {[%clk 0:00:35]} 47. Qb3 {[%clk 0:01:00]}  Rg5+ {[%clk 0:00:31]} 48. Kf3 {[%clk 0:01:00]}  Rf5+ {[%clk 0:00:31]} 49. Ke3 {[%clk 0:01:00]}  Rxe5+ {[%clk 0:00:29]} 50. dxe5 {[%clk 0:00:58]}  Qxe5+ {[%clk 0:00:30]} 51. Kd2 {[%clk 0:00:56]}  Qf4+ {[%clk 0:00:29]} 52. Kc2 {[%clk 0:00:56]}  Rxa4 {[%clk 0:00:30]} 53. Rd1 {[%clk 0:00:49]}  Kxf6 {[%clk 0:00:28]} 54. Kb2 {[%clk 0:00:44]}  Qf2+ {[%clk 0:00:28]} 55. Kb1 {[%clk 0:00:43]}  Qa7 {[%clk 0:00:24]} 56. Rf1+ {[%clk 0:00:42]}  Kg7 {[%clk 0:00:24]} 57. Qb2 {[%clk 0:00:38]}  Rc4 {[%clk 0:00:23]} 58. Re1 {[%clk 0:00:32]}  Rc6 {[%clk 0:00:19]} 59. Ka1 {[%clk 0:00:31]}  Qc5 {[%clk 0:00:18]} 60. c4+ {[%clk 0:00:31]}  d4 {[%clk 0:00:19]} 61. Qe2 {[%clk 0:00:27]}  Qxc4 {[%clk 0:00:18]} 62. Qe5+ {[%clk 0:00:28]}  Kg8 {[%clk 0:00:18]} 63. Qg3 {[%clk 0:00:20]}  Qc3+ {[%clk 0:00:17]} 64. Qxc3 {[%clk 0:00:20]}  dxc3 {[%clk 0:00:18]} 65. Kb1 {[%clk 0:00:21]}  g5 {[%clk 0:00:19]} 66. Kc2 {[%clk 0:00:20]}  Kf7 {[%clk 0:00:19]} 67. a4 {[%clk 0:00:21]}  Kf6 {[%clk 0:00:19]} 68. a5 {[%clk 0:00:21]}  Kf5 {[%clk 0:00:20]} 69. Rf1+ {[%clk 0:00:20]}  Ke4 {[%clk 0:00:19]} 70. Rg1 {[%clk 0:00:20]}  Kf4 {[%clk 0:00:19]} 71. Rf1+ {[%clk 0:00:20]}  Kg4 {[%clk 0:00:19]} 72. Rg1+ {[%clk 0:00:20]}  Kh4 {[%clk 0:00:20]} 73. Rh1+ {[%clk 0:00:21]}  Kg4 {[%clk 0:00:20]} 74. Rg1+ {[%clk 0:00:21]}  Kf5 {[%clk 0:00:21]} 75. Rf1+ {[%clk 0:00:22]}  Kg6 {[%clk 0:00:22]} 76. Rg1 {[%clk 0:00:22]}  Ra6 {[%clk 0:00:22]} 77. Kxc3 {[%clk 0:00:21]}  Rxa5 {[%clk 0:00:22]} 78. Kd4 {[%clk 0:00:22]}  e5+ {[%clk 0:00:22]} 79. Ke4 {[%clk 0:00:22]}  Kf6 {[%clk 0:00:23]} 80. Rf1+ {[%clk 0:00:22]}  Ke6 {[%clk 0:00:23]} 81. Rf8 {[%clk 0:00:22]}  Ra4+ {[%clk 0:00:24]} 82. Ke3 {[%clk 0:00:23]}  g4 {[%clk 0:00:24]} 83. Re8+ {[%clk 0:00:22]}  Kf6 {[%clk 0:00:25]} 84. Rf8+ {[%clk 0:00:21]}  Ke7 {[%clk 0:00:26]} 85. Rg8 {[%clk 0:00:21]}  Rf4 {[%clk 0:00:25]} 86. Rg6 {[%clk 0:00:20]}  Kf7 {[%clk 0:00:25]} 87. Rg5 {[%clk 0:00:20]}  Kf6 {[%clk 0:00:25]} 88. Rg8 {[%clk 0:00:21]}  Rf3+ {[%clk 0:00:26]} 89. Ke4 {[%clk 0:00:20]}  Ra3 {[%clk 0:00:27]} 90. Rxg4 {[%clk 0:00:19]}  Ra4+ {[%clk 0:00:26]} 91. Kf3 {[%clk 0:00:19]}  Ra3+ {[%clk 0:00:27]} 92. Ke4 {[%clk 0:00:19]}  Ra4+ {[%clk 0:00:27]} 93. Kf3 {[%clk 0:00:20]}  Ra1 {[%clk 0:00:26]} 94. Rg8 {[%clk 0:00:19]}  Rf1+ {[%clk 0:00:26]} 95. Ke4 {[%clk 0:00:19]}  Rf4+ {[%clk 0:00:26]} 96. Ke3 {[%clk 0:00:19]}  Rh4 {[%clk 0:00:26]} 97. Rf8+ {[%clk 0:00:19]}  Ke6 {[%clk 0:00:26]} 98. Re8+ {[%clk 0:00:19]}  Kd6 {[%clk 0:00:27]} 99. Rd8+ {[%clk 0:00:19]}  Ke7 {[%clk 0:00:28]} 100. Ra8 {[%clk 0:00:20]}  Ke6 {[%clk 0:00:28]} 101. Re8+ {[%clk 0:00:19]}  Kf5 {[%clk 0:00:28]} 102. Rf8+ {[%clk 0:00:20]}  Ke6 {[%clk 0:00:28]} 103. Re8+ {[%clk 0:00:20]} 1/2-1/2


[Site "https://www.chess.com"]

[Event "Titled Tuesday Blitz January 03 Late 2023"]
[White "Kovacs, Klara"]
[Black "Martinez Ramirez, Lennis"]
[WhiteFideId "733210"]
[BlackFideId "3509079"]
[WhiteElo "2121"]
[BlackElo "2426"]
[Result "0-1"]
[Round "01"]
[TimeControl "180+2"]
[Date "2023.01.03"]
[WhiteClock "0:01:25"]
[BlackClock "0:02:08"]

1. e4 {[%clk 0:02:53]}  c6 {[%clk 0:02:55]} 2. d4 {[%clk 0:02:52]}  d5 {[%clk 0:02:54]} 3. exd5 {[%clk 0:02:53]}  cxd5 {[%clk 0:02:54]} 4. c4 {[%clk 0:02:53]}  Nf6 {[%clk 0:02:55]} 5. Nc3 {[%clk 0:02:53]}  Nc6 {[%clk 0:02:55]} 6. Bg5 {[%clk 0:02:50]}  Be6 {[%clk 0:02:53]} 7. cxd5 {[%clk 0:02:49]}  Bxd5 {[%clk 0:02:52]} 8. Bxf6 {[%clk 0:02:43]}  gxf6 {[%clk 0:02:51]} 9. f3 {[%clk 0:02:30]}  e6 {[%clk 0:02:50]} 10. Bb5 {[%clk 0:02:29]}  a6 {[%clk 0:02:48]} 11. Ba4 {[%clk 0:02:28]}  Rg8 {[%clk 0:02:45]} 12. Qd2 {[%clk 0:02:24]}  Bb4 {[%clk 0:02:33]} 13. Nh3 {[%clk 0:02:22]}  b5 {[%clk 0:02:27]} 14. Bc2 {[%clk 0:02:21]}  Bc4 {[%clk 0:02:26]} 15. b3 {[%clk 0:02:11]}  Qxd4 {[%clk 0:02:25]} 16. Qxd4 {[%clk 0:02:02]}  Nxd4 {[%clk 0:02:22]} 17. O-O-O {[%clk 0:02:01]}  Bxc3 {[%clk 0:02:18]} 18. bxc4 {[%clk 0:02:01]}  Rxg2 {[%clk 0:02:18]} 19. Be4 {[%clk 0:01:55]}  Rc8 {[%clk 0:02:17]} 20. Nf4 {[%clk 0:01:51]}  Rxa2 {[%clk 0:02:16]} 21. Rxd4 {[%clk 0:01:34]}  Bxd4 {[%clk 0:02:14]} 22. Bb1 {[%clk 0:01:27]}  Rxc4+ {[%clk 0:02:13]} 23. Kd1 {[%clk 0:01:27]}  Rb2 {[%clk 0:02:10]} 24. Bd3 {[%clk 0:01:25]}  Ra4 {[%clk 0:02:08]} 25. Ne2 {[%clk 0:01:25]}  Ra1+ {[%clk 0:02:08]} 26. Nc1 {[%clk 0:01:25]}  Be3 {[%clk 0:02:08]} 0-1


[Site "https://www.chess.com"]

[Event "Titled Tuesday Blitz January 03 Late 2023"]
[White "Richter, Paul"]
[Black "Zampronha, Wladimir Camilo"]
[WhiteFideId "2046350"]
[BlackFideId "2103087"]
[WhiteElo "2171"]
[BlackElo "2176"]
[Result "1/2-1/2"]
[Round "01"]
[TimeControl "180+2"]
[Date "2023.01.03"]
[WhiteClock "0:00:13"]
[BlackClock "0:00:12"]

1. e4 {[%clk 0:03:00]}  c5 {[%clk 0:02:58]} 2. Nf3 {[%clk 0:03:00]}  e6 {[%clk 0:02:59]} 3. d3 {[%clk 0:03:00]}  Nc6 {[%clk 0:02:59]} 4. Nbd2 {[%clk 0:03:01]}  d5 {[%clk 0:02:59]} 5. g3 {[%clk 0:03:02]}  Bd6 {[%clk 0:02:57]} 6. Bg2 {[%clk 0:03:02]}  Nge7 {[%clk 0:02:58]} 7. O-O {[%clk 0:03:03]}  O-O {[%clk 0:02:58]} 8. Re1 {[%clk 0:03:03]}  Bc7 {[%clk 0:02:49]} 9. a4 {[%clk 0:03:01]}  b6 {[%clk 0:02:45]} 10. exd5 {[%clk 0:02:59]}  exd5 {[%clk 0:02:31]} 11. c3 {[%clk 0:02:58]}  Bf5 {[%clk 0:02:30]} 12. Nf1 {[%clk 0:02:57]}  Qd7 {[%clk 0:02:27]} 13. d4 {[%clk 0:02:50]}  c4 {[%clk 0:02:23]} 14. Bg5 {[%clk 0:02:23]}  Rfe8 {[%clk 0:02:22]} 15. Bxe7 {[%clk 0:02:22]}  Rxe7 {[%clk 0:02:18]} 16. Rxe7 {[%clk 0:02:17]}  Qxe7 {[%clk 0:02:13]} 17. Qd2 {[%clk 0:02:15]}  Be4 {[%clk 0:02:05]} 18. Re1 {[%clk 0:02:11]}  Qf6 {[%clk 0:02:03]} 19. Qd1 {[%clk 0:02:07]}  h6 {[%clk 0:01:56]} 20. N1d2 {[%clk 0:02:03]}  Bd3 {[%clk 0:01:53]} 21. Nh4 {[%clk 0:01:55]}  Rd8 {[%clk 0:01:50]} 22. Nf1 {[%clk 0:01:39]}  Ne7 {[%clk 0:01:41]} 23. Qf3 {[%clk 0:01:32]}  Qxf3 {[%clk 0:01:39]} 24. Nxf3 {[%clk 0:01:32]}  Kf8 {[%clk 0:01:38]} 25. Ne5 {[%clk 0:01:25]}  Bc2 {[%clk 0:01:25]} 26. Ne3 {[%clk 0:01:03]}  Bxa4 {[%clk 0:01:18]} 27. Ra1 {[%clk 0:00:53]}  b5 {[%clk 0:01:18]} 28. f4 {[%clk 0:00:50]}  f6 {[%clk 0:01:15]} 29. Nf3 {[%clk 0:00:46]}  Bb6 {[%clk 0:01:11]} 30. Kf2 {[%clk 0:00:44]}  Kf7 {[%clk 0:01:08]} 31. g4 {[%clk 0:00:41]}  Nc8 {[%clk 0:01:01]} 32. Nh4 {[%clk 0:00:36]}  Ne7 {[%clk 0:00:56]} 33. f5 {[%clk 0:00:35]}  Bc7 {[%clk 0:00:56]} 34. h3 {[%clk 0:00:26]}  Bf4 {[%clk 0:00:55]} 35. Bf3 {[%clk 0:00:24]}  Bxe3+ {[%clk 0:00:54]} 36. Kxe3 {[%clk 0:00:25]}  Nc6 {[%clk 0:00:43]} 37. Ng2 {[%clk 0:00:25]}  Ne7 {[%clk 0:00:40]} 38. Nf4 {[%clk 0:00:25]}  Rd6 {[%clk 0:00:38]} 39. h4 {[%clk 0:00:24]}  Rd8 {[%clk 0:00:25]} 40. Ne6 {[%clk 0:00:20]}  Rd6 {[%clk 0:00:24]} 41. h5 {[%clk 0:00:20]}  Nc8 {[%clk 0:00:15]} 42. Nf4 {[%clk 0:00:12]}  Nb6 {[%clk 0:00:15]} 43. Kd2 {[%clk 0:00:13]}  Rd8 {[%clk 0:00:15]} 44. Ne6 {[%clk 0:00:12]}  Rd6 {[%clk 0:00:16]} 45. Nc5 {[%clk 0:00:13]}  Rd8 {[%clk 0:00:14]} 46. Re1 {[%clk 0:00:13]}  Re8 {[%clk 0:00:12]} 47. Ra1 {[%clk 0:00:12]}  Rd8 {[%clk 0:00:11]} 48. Nb7 {[%clk 0:00:12]}  Rd7 {[%clk 0:00:11]} 49. Nc5 {[%clk 0:00:13]}  Rd8 {[%clk 0:00:12]} 1/2-1/2


[Site "https://www.chess.com"]

[Event "Titled Tuesday Blitz January 03 Late 2023"]
[White "Andreassen, Lars"]
[Black "Rodriguez Fontecha, Marcos"]
[WhiteFideId "1504878"]
[BlackFideId "2256576"]
[WhiteElo "2168"]
[BlackElo "2309"]
[Result "0-1"]
[Round "01"]
[TimeControl "180+2"]
[Date "2023.01.03"]
[WhiteClock "0:00:01"]
[BlackClock "0:00:12"]

1. d4 {[%clk 0:02:59]}  d5 {[%clk 0:03:00]} 2. Nf3 {[%clk 0:02:59]}  Nf6 {[%clk 0:02:58]} 3. c4 {[%clk 0:02:59]}  c6 {[%clk 0:02:58]} 4. Nc3 {[%clk 0:03:00]}  dxc4 {[%clk 0:02:58]} 5. e4 {[%clk 0:02:59]}  b5 {[%clk 0:02:58]} 6. e5 {[%clk 0:02:59]}  Nd5 {[%clk 0:02:58]} 7. a4 {[%clk 0:02:59]}  e6 {[%clk 0:02:57]} 8. axb5 {[%clk 0:02:59]}  Nxc3 {[%clk 0:02:58]} 9. bxc3 {[%clk 0:02:59]}  cxb5 {[%clk 0:02:58]} 10. Ng5 {[%clk 0:03:00]}  Bb7 {[%clk 0:02:56]} 11. Qh5 {[%clk 0:02:59]}  g6 {[%clk 0:02:57]} 12. Qg4 {[%clk 0:02:58]}  Be7 {[%clk 0:02:56]} 13. h4 {[%clk 0:02:42]}  h5 {[%clk 0:02:52]} 14. Qf4 {[%clk 0:02:42]}  Bxg5 {[%clk 0:02:41]} 15. hxg5 {[%clk 0:02:43]}  Nd7 {[%clk 0:02:40]} 16. Ba3 {[%clk 0:02:37]}  Qa5 {[%clk 0:02:38]} 17. Qd2 {[%clk 0:02:35]}  O-O-O {[%clk 0:02:31]} 18. Be2 {[%clk 0:02:28]}  Bxg2 {[%clk 0:02:29]} 19. Rg1 {[%clk 0:02:28]}  Bd5 {[%clk 0:02:29]} 20. Qb2 {[%clk 0:02:23]}  Qb6 {[%clk 0:02:24]} 21. Bb4 {[%clk 0:02:17]}  h4 {[%clk 0:02:15]} 22. Ba5 {[%clk 0:02:14]}  Qb7 {[%clk 0:02:16]} 23. Bxd8 {[%clk 0:02:13]}  Kxd8 {[%clk 0:02:17]} 24. f3 {[%clk 0:01:36]}  h3 {[%clk 0:02:10]} 25. Kf2 {[%clk 0:01:30]}  h2 {[%clk 0:02:03]} 26. Rh1 {[%clk 0:01:30]}  Rh3 {[%clk 0:02:04]} 27. Kg2 {[%clk 0:01:10]}  Bxf3+ {[%clk 0:02:03]} 28. Kxh3 {[%clk 0:01:08]}  Bxh1 {[%clk 0:02:04]} 29. Bg4 {[%clk 0:01:01]}  Bf3 {[%clk 0:01:25]} 30. Qxh2 {[%clk 0:00:45]}  Bxg4+ {[%clk 0:01:17]} 31. Kxg4 {[%clk 0:00:46]}  Qe4+ {[%clk 0:01:18]} 32. Qf4 {[%clk 0:00:45]}  Qg2+ {[%clk 0:01:05]} 33. Kh4 {[%clk 0:00:41]}  Ke7 {[%clk 0:00:52]} 34. Rxa7 {[%clk 0:00:35]}  Qh1+ {[%clk 0:00:52]} 35. Kg3 {[%clk 0:00:32]}  Qe1+ {[%clk 0:00:52]} 36. Kh3 {[%clk 0:00:30]}  Qh1+ {[%clk 0:00:31]} 37. Kg3 {[%clk 0:00:30]}  Qe1+ {[%clk 0:00:30]} 38. Kg2 {[%clk 0:00:28]}  Qe2+ {[%clk 0:00:30]} 39. Kh3 {[%clk 0:00:28]}  Qd3+ {[%clk 0:00:26]} 40. Kh4 {[%clk 0:00:27]}  Ke8 {[%clk 0:00:11]} 41. Ra8+ {[%clk 0:00:26]}  Ke7 {[%clk 0:00:11]} 42. Ra7 {[%clk 0:00:26]}  Ke8 {[%clk 0:00:11]} 43. Rxd7 {[%clk 0:00:24]}  Kxd7 {[%clk 0:00:12]} 44. Qxf7+ {[%clk 0:00:24]}  Kd8 {[%clk 0:00:13]} 45. Qg8+ {[%clk 0:00:23]}  Kc7 {[%clk 0:00:12]} 46. Qf7+ {[%clk 0:00:22]}  Kd8 {[%clk 0:00:12]} 47. Qf8+ {[%clk 0:00:22]}  Kc7 {[%clk 0:00:11]} 48. Qe7+ {[%clk 0:00:23]}  Kb6 {[%clk 0:00:12]} 49. Qxe6+ {[%clk 0:00:23]}  Ka5 {[%clk 0:00:13]} 50. Qg4 {[%clk 0:00:21]}  Qxc3 {[%clk 0:00:12]} 51. e6 {[%clk 0:00:21]}  Qe1+ {[%clk 0:00:11]} 52. Kh3 {[%clk 0:00:18]}  c3 {[%clk 0:00:12]} 53. d5 {[%clk 0:00:01]}  c2 {[%clk 0:00:12]} 0-1


[Site "https://www.chess.com"]

[Event "Titled Tuesday Blitz January 03 Late 2023"]
[White "Kleiman, Jake"]
[Black "Broca Jimenez, Fernando"]
[WhiteFideId "2020041"]
[BlackFideId "5104742"]
[WhiteElo "2399"]
[BlackElo "2075"]
[Result "1-0"]
[Round "01"]
[TimeControl "180+2"]
[Date "2023.01.03"]
[WhiteClock "0:02:23"]
[BlackClock "0:01:48"]

1. e4 {[%clk 0:03:00]}  c5 {[%clk 0:02:57]} 2. c3 {[%clk 0:02:59]}  Nf6 {[%clk 0:02:55]} 3. e5 {[%clk 0:02:58]}  Nd5 {[%clk 0:02:54]} 4. Bc4 {[%clk 0:02:52]}  Nb6 {[%clk 0:02:53]} 5. Bb3 {[%clk 0:02:53]}  Nc6 {[%clk 0:02:52]} 6. Nf3 {[%clk 0:02:53]}  d5 {[%clk 0:02:51]} 7. exd6 {[%clk 0:02:54]}  Qxd6 {[%clk 0:02:51]} 8. O-O {[%clk 0:02:54]}  Be6 {[%clk 0:02:38]} 9. Bxe6 {[%clk 0:02:54]}  Qxe6 {[%clk 0:02:39]} 10. a4 {[%clk 0:02:54]}  g6 {[%clk 0:02:34]} 11. a5 {[%clk 0:02:54]}  Nd5 {[%clk 0:02:30]} 12. d4 {[%clk 0:02:55]}  cxd4 {[%clk 0:02:21]} 13. Nxd4 {[%clk 0:02:55]}  Nxd4 {[%clk 0:02:22]} 14. Qxd4 {[%clk 0:02:56]}  Nf6 {[%clk 0:02:21]} 15. Na3 {[%clk 0:02:41]}  Bg7 {[%clk 0:02:20]} 16. Nb5 {[%clk 0:02:41]}  Qd5 {[%clk 0:01:56]} 17. Nc7+ {[%clk 0:02:41]}  Kf8 {[%clk 0:01:53]} 18. Nxd5 {[%clk 0:02:42]}  Nxd5 {[%clk 0:01:53]} 19. Qxd5 {[%clk 0:02:41]}  e6 {[%clk 0:01:53]} 20. Qxb7 {[%clk 0:02:40]}  Re8 {[%clk 0:01:52]} 21. Qxa7 {[%clk 0:02:37]}  h5 {[%clk 0:01:52]} 22. a6 {[%clk 0:02:36]}  Kg8 {[%clk 0:01:53]} 23. Qd7 {[%clk 0:02:32]}  Kh7 {[%clk 0:01:53]} 24. a7 {[%clk 0:02:32]}  Rd8 {[%clk 0:01:51]} 25. Qxf7 {[%clk 0:02:30]}  Rhf8 {[%clk 0:01:50]} 26. Qxe6 {[%clk 0:02:29]}  Rfe8 {[%clk 0:01:50]} 27. Qxe8 {[%clk 0:02:29]}  Rxe8 {[%clk 0:01:49]} 28. a8=Q {[%clk 0:02:30]}  Rxa8 {[%clk 0:01:50]} 29. Rxa8 {[%clk 0:02:30]}  Be5 {[%clk 0:01:50]} 30. Rd1 {[%clk 0:02:30]}  g5 {[%clk 0:01:49]} 31. Rd7+ {[%clk 0:02:31]}  Kg6 {[%clk 0:01:49]} 32. Ra6+ {[%clk 0:02:30]}  Kf5 {[%clk 0:01:50]} 33. f3 {[%clk 0:02:29]}  g4 {[%clk 0:01:50]} 34. Rf7+ {[%clk 0:02:28]}  Bf6 {[%clk 0:01:47]} 35. Rfxf6+ {[%clk 0:02:28]}  Ke5 {[%clk 0:01:48]} 36. Rad6 {[%clk 0:02:25]}  gxf3 {[%clk 0:01:47]} 37. gxf3 {[%clk 0:02:26]}  h4 {[%clk 0:01:47]} 38. Kh1 {[%clk 0:02:25]}  h3 {[%clk 0:01:48]} 39. Bf4# {[%clk 0:02:23]} 1-0


[Site "https://www.chess.com"]

[Event "Titled Tuesday Blitz January 03 Late 2023"]
[White "Sailer, Mike"]
[Black "Chor, Kevin"]
[WhiteFideId "2012901"]
[BlackFideId "2090740"]
[WhiteElo "2109"]
[BlackElo "1944"]
[Result "1/2-1/2"]
[Round "01"]
[TimeControl "180+2"]
[Date "2023.01.03"]
[WhiteClock "0:00:09"]
[BlackClock "0:00:07"]

1. d4 {[%clk 0:03:00]}  Nf6 {[%clk 0:02:58]} 2. Nf3 {[%clk 0:02:57]}  g6 {[%clk 0:02:58]} 3. Bf4 {[%clk 0:02:53]}  Bg7 {[%clk 0:02:58]} 4. e3 {[%clk 0:02:53]}  d6 {[%clk 0:02:58]} 5. Be2 {[%clk 0:02:52]}  Nbd7 {[%clk 0:02:58]} 6. O-O {[%clk 0:02:49]}  O-O {[%clk 0:02:58]} 7. c4 {[%clk 0:02:50]}  b6 {[%clk 0:02:57]} 8. Nc3 {[%clk 0:02:50]}  Bb7 {[%clk 0:02:57]} 9. h3 {[%clk 0:02:51]}  Ne4 {[%clk 0:02:56]} 10. Nxe4 {[%clk 0:02:48]}  Bxe4 {[%clk 0:02:57]} 11. Rc1 {[%clk 0:02:46]}  e5 {[%clk 0:02:55]} 12. Bh2 {[%clk 0:02:45]}  Qe7 {[%clk 0:02:50]} 13. Re1 {[%clk 0:02:45]}  f5 {[%clk 0:02:49]} 14. b4 {[%clk 0:02:41]}  Rad8 {[%clk 0:02:47]} 15. c5 {[%clk 0:02:33]}  dxc5 {[%clk 0:02:43]} 16. bxc5 {[%clk 0:02:32]}  bxc5 {[%clk 0:02:39]} 17. dxe5 {[%clk 0:02:30]}  Nxe5 {[%clk 0:02:35]} 18. Qa4 {[%clk 0:02:29]}  Bxf3 {[%clk 0:02:20]} 19. Bxf3 {[%clk 0:02:07]}  Nd3 {[%clk 0:02:17]} 20. Qxa7 {[%clk 0:01:58]}  Nxe1 {[%clk 0:02:07]} 21. Rxe1 {[%clk 0:01:57]}  Be5 {[%clk 0:02:07]} 22. Bxe5 {[%clk 0:01:48]}  Qxe5 {[%clk 0:02:08]} 23. Rc1 {[%clk 0:01:41]}  Qd6 {[%clk 0:01:20]} 24. Rxc5 {[%clk 0:01:30]}  Rd7 {[%clk 0:01:17]} 25. Qa3 {[%clk 0:01:02]}  Rb8 {[%clk 0:01:07]} 26. g3 {[%clk 0:00:48]}  Rb5 {[%clk 0:01:01]} 27. Bd5+ {[%clk 0:00:40]}  Kf8 {[%clk 0:00:54]} 28. Qa8+ {[%clk 0:00:34]}  Rd8 {[%clk 0:00:54]} 29. Rxb5 {[%clk 0:00:21]}  Rxa8 {[%clk 0:00:53]} 30. Bxa8 {[%clk 0:00:21]}  Qa6 {[%clk 0:00:49]} 31. Rb8+ {[%clk 0:00:18]}  Kg7 {[%clk 0:00:49]} 32. Bd5 {[%clk 0:00:18]}  Qd6 {[%clk 0:00:45]} 33. Bb3 {[%clk 0:00:13]}  Kh6 {[%clk 0:00:30]} 34. Rb5 {[%clk 0:00:04]}  c5 {[%clk 0:00:28]} 35. Rb7 {[%clk 0:00:04]}  Qc6 {[%clk 0:00:19]} 36. Rb8 {[%clk 0:00:04]}  c4 {[%clk 0:00:18]} 37. Bc2 {[%clk 0:00:04]}  c3 {[%clk 0:00:18]} 38. Rb3 {[%clk 0:00:04]}  Kg5 {[%clk 0:00:15]} 39. Kh2 {[%clk 0:00:02]}  h5 {[%clk 0:00:16]} 40. h4+ {[%clk 0:00:02]}  Kf6 {[%clk 0:00:16]} 41. Kg1 {[%clk 0:00:03]}  g5 {[%clk 0:00:16]} 42. Bd3 {[%clk 0:00:03]}  c2 {[%clk 0:00:14]} 43. Bxc2 {[%clk 0:00:03]}  Qxc2 {[%clk 0:00:15]} 44. Rb6+ {[%clk 0:00:03]}  Ke5 {[%clk 0:00:15]} 45. Rb4 {[%clk 0:00:04]}  gxh4 {[%clk 0:00:11]} 46. Rxh4 {[%clk 0:00:04]}  Qxa2 {[%clk 0:00:11]} 47. Rf4 {[%clk 0:00:04]}  Qb1+ {[%clk 0:00:10]} 48. Kg2 {[%clk 0:00:05]}  Qb7+ {[%clk 0:00:10]} 49. Kg1 {[%clk 0:00:05]}  Qg7 {[%clk 0:00:11]} 50. Rh4 {[%clk 0:00:06]}  Qg5 {[%clk 0:00:10]} 51. Rf4 {[%clk 0:00:06]}  Qg6 {[%clk 0:00:09]} 52. Rh4 {[%clk 0:00:05]}  Kf6 {[%clk 0:00:09]} 53. Rf4 {[%clk 0:00:06]}  Kg5 {[%clk 0:00:10]} 54. Rh4 {[%clk 0:00:06]}  Qc6 {[%clk 0:00:10]} 55. Rf4 {[%clk 0:00:07]}  Qc1+ {[%clk 0:00:10]} 56. Kg2 {[%clk 0:00:06]}  Qd2 {[%clk 0:00:10]} 57. Rh4 {[%clk 0:00:06]}  Qd5+ {[%clk 0:00:09]} 58. Kg1 {[%clk 0:00:06]}  Qd2 {[%clk 0:00:08]} 59. Rf4 {[%clk 0:00:06]}  Kf6 {[%clk 0:00:08]} 60. Rh4 {[%clk 0:00:07]}  Ke5 {[%clk 0:00:08]} 61. Rf4 {[%clk 0:00:07]}  Qd1+ {[%clk 0:00:07]} 62. Kg2 {[%clk 0:00:07]}  Qd5+ {[%clk 0:00:08]} 63. Kg1 {[%clk 0:00:07]}  Qa2 {[%clk 0:00:09]} 64. Rh4 {[%clk 0:00:08]}  f4 {[%clk 0:00:09]} 65. Rxf4 {[%clk 0:00:08]}  Qb1+ {[%clk 0:00:09]} 66. Kg2 {[%clk 0:00:09]}  Qb7+ {[%clk 0:00:10]} 67. Kg1 {[%clk 0:00:09]}  Qe7 {[%clk 0:00:08]} 68. Rh4 {[%clk 0:00:09]}  Qf7 {[%clk 0:00:07]} 69. Rf4 {[%clk 0:00:09]}  Qg6 {[%clk 0:00:07]} 70. Rh4 {[%clk 0:00:09]} 1/2-1/2


[Site "https://www.chess.com"]